[Event "GER-chW 2019"]
[Site "Magdeburg"]
[Date "2019.05.29"]
[Round "5.7"]
[White "Zimmer, Elke"]
[Black "Perez Celis, Alba"]
[Result "0-1"]
[ECO "C68"]
[WhiteElo "1926"]
[BlackElo "1822"]
[Annotator "NA"]
[PlyCount "76"]
[EventDate "2019.05.26"]
[EventType "tourn"]
[EventCountry "GER"]
[SourceTitle "playchess.com"]
[Source "ChessBase"]
[SourceQuality "1"]
[TimeControl "40/5400+30:1800+30"]

1. e4 {[%emt 0:00:00]} e5 {[%emt 0:00:00]} 2. Nf3 {[%emt 0:00:00]} Nc6 {[%emt 0:00:00]} 3. Bb5 {[%emt 0:00:34]} a6 {[%emt 0:00:05]} 4. Bxc6 dxc6 {[%emt 0:00:07]} 5. h3 {[%emt 0:02:08]} Be6 {[%emt 0:16:54]} 6. d3 {[%emt 0:02:17]} f6 {[%emt 0:01:37]} 7. Be3 {[%emt 0:03:28]} Qd7 {[%emt 0:00:51]} 8. a3 {[%emt 0:00:22]} Ne7 {[%emt 0:01:55]} 9. Nc3 {[%emt 0:00:19]} Ng6 {[%emt 0:00:40]} 10. Qd2 {[%emt 0:00:33]} Bd6 {[%emt 0:00:59]} 11. g4 {[%emt 0:08:56]} O-O-O {[%emt 0:02:19]} 12. Rg1 {[%emt 0:03:31]} Nf4 {[%emt 0:02:24]} 13. Bxf4 {[%emt 0:00:39]} exf4 {[%emt 0:00:21]} 14. Ne2 {[%emt 0:01:29]} g5 {[%emt 0:01:33]} 15. O-O-O {[%emt 0:02:16]} h5 {[%emt 0:00:41]} 16. Ned4 {[%emt 0:01:27]} hxg4 {[%emt 0:18:15]} 17. Nxe6 {[%emt 0:02:27]} Qxe6 {[%emt 0:00:07]} 18. hxg4 {[%emt 0:01:32]} Qa2 {[%emt 0:03:02]} 19. Qc3 {[%emt 0:03:15]} Rh3 {[%emt 0:01:04]} 20. d4 {[%emt 0:09:51]} Rxf3 {[%emt 0:08:16]} 21. Qxf3 {[%emt 0:00:47]} Qa1+ {[%emt 0:00:13]} 22. Kd2 {[%emt 0:00:18]} Qxb2 {[%emt 0:02:07]} 23. Ke2 {[%emt 0:03:23]} Qxc2+ {[%emt 0:04:42]} 24. Rd2 {[%emt 0:04:04]} Qa4 {[%emt 0:00:38]} 25. Qd3 {[%emt 0:05:47]} Bc5 {[%emt 0:11:02]} 26. d5 {[%emt 0:03:43]} cxd5 {[%emt 0:00:52]} 27. exd5 {[%emt 0:00:06]} Re8+ {[%emt 0:03:49]} 28. Kf3 {[%emt 0:00:46]} Qxa3 {[%emt 0:01:40]} 29. Qxa3 {[%emt 0:00:59]} Bxa3 {[%emt 0:00:06]} 30. Rd3 {[%emt 0:00:22]} Rh8 {[%emt 0:01:41]} 31. Kg2 {[%emt 0:01:06]} Bd6 {[%emt 0:00:20]} 32. Rh1 {[%emt 0:00:33]} Rxh1 {[%emt 0:00:40]} 33. Kxh1 {[%emt 0:00:04]} b5 {[%emt 0:01:43]} 34. Kg2 {[%emt 0:00:18]} a5 {[%emt 0:01:32]} 35. Rb3 {[%emt 0:11:21]} b4 {[%emt 0:00:10]} 36. Kf1 {[%emt 0:00:10]} a4 {[%emt 0:00:05]} 37. Rb1 {[%emt 0:00:12]} b3 {[%emt 0:00:30]} 38. Ke2 {[%emt 0:00:25]} a3 {[%emt 0:00:09]} 0-1

[Event "GER-chW 2019"]
[Site "Magdeburg"]
[Date "2019.05.29"]
[Round "5.8"]
[White "Just, Anita"]
[Black "Lowke, Kathrin"]
[Result "1/2-1/2"]
[ECO "B35"]
[WhiteElo "1866"]
[BlackElo "1887"]
[Annotator "NA"]
[PlyCount "82"]
[EventDate "2019.05.26"]
[EventType "tourn"]
[EventCountry "GER"]
[SourceTitle "playchess.com"]
[Source "ChessBase"]
[SourceQuality "1"]
[TimeControl "40/5400+30:1800+30"]

1. e4 {[%emt 0:00:00]} c5 {[%emt 0:00:00]} 2. Nf3 {[%emt 0:00:00]} Nc6 {[%emt 0:00:00]} 3. d4 {[%emt 0:00:00]} cxd4 {[%emt 0:00:00]} 4. Nxd4 {[%emt 0:00:00]} g6 {[%emt 0:00:00]} 5. Nc3 {[%emt 0:00:33]} Bg7 {[%emt 0:00:02]} 6. Be3 {[%emt 0:00:15]} Nf6 {[%emt 0:00:11]} 7. Bc4 {[%emt 0:03:38]} O-O {[%emt 0:00:51]} 8. Bb3 {[%emt 0:00:15]} Re8 {[%emt 0:00:08]} 9. O-O {[%emt 0:05:20]} d6 {[%emt 0:11:22]} 10. h3 {[%emt 0:03:47]} Na5 {[%emt 0:00:38]} 11. Kh1 {[%emt 0:01:40]} Nxb3 {[%emt 0:02:50]} 12. axb3 {[%emt 0:00:05]} b6 {[%emt 0:03:03]} 13. Ndb5 {[%emt 0:25:47]} Bb7 {[%emt 0:08:05]} 14. e5 {[%emt 0:08:52]} Qd7 {[%emt 0:01:10]} 15. Kh2 {[%emt 0:09:08]} Nd5 {[%emt 0:08:51]} 16. Nxd5 {[%emt 0:05:06]} Qxb5 {[%emt 0:00:05]} 17. c4 {[%emt 0:04:43]} Qc6 {[%emt 0:00:49]} 18. exd6 {[%emt 0:12:17]} e6 {[%emt 0:03:23]} 19. d7 {[%emt 0:02:24]} exd5 {[%emt 0:01:53]} 20. dxe8=Q+ {[%emt 0:00:26]} Rxe8 {[%emt 0:00:10]} 21. cxd5 {[%emt 0:03:54]} Qd6+ {[%emt 0:00:50]} 22. Kg1 {[%emt 0:01:29]} Bxd5 {[%emt 0:02:04]} 23. Qd2 {[%emt 0:04:30]} Qc6 {[%emt 0:04:13]} 24. f3 {[%emt 0:01:30]} a5 {[%emt 0:01:40]} 25. Rac1 {[%emt 0:00:48]} Qb5 {[%emt 0:01:45]} 26. Rfe1 {[%emt 0:02:19]} Bf8 {[%emt 0:03:31]} 27. Bd4 {[%emt 0:01:08]} Be6 {[%emt 0:03:50]} 28. Qe2 {[%emt 0:00:51]} Qxe2 {[%emt 0:03:29]} 29. Rxe2 {[%emt 0:00:04]} Rb8 {[%emt 0:00:08]} 30. Rc6 {[%emt 0:00:55]} b5 {[%emt 0:03:10]} 31. Rb6 {[%emt 0:01:42]} Rd8 {[%emt 0:00:28]} 32. Bf2 {[%emt 0:00:34]} Bxb3 {[%emt 0:00:37]} 33. Re1 {[%emt 0:00:46]} Bc4 {[%emt 0:03:36]} 34. b3 {[%emt 0:00:42]} Bxb3 {[%emt 0:01:42]} 35. Rxb5 {[%emt 0:00:03]} a4 {[%emt 0:00:06]} 36. Bb6 {[%emt 0:00:25]} Ra8 {[%emt 0:03:00]} 37. Bd4 {[%emt 0:00:15]} Be6 {[%emt 0:01:24]} 38. Reb1 {[%emt 0:00:56]} a3 {[%emt 0:01:55]} 39. Kf2 {[%emt 0:01:07]} a2 {[%emt 0:01:39]} 40. Rc1 {[%emt 0:00:33]} Bh6 {[%emt 0:04:54]} 41. Ra1 {[%emt 0:30:25]} Rc8 {[%emt 0:32:56]} 1/2-1/2

[Event "GER-chW 2019"]
[Site "Magdeburg"]
[Date "2019.05.29"]
[Round "5.9"]
[White "Ries, Jutta"]
[Black "Freter, Anke"]
[Result "1-0"]
[ECO "A03"]
[WhiteElo "2017"]
[BlackElo "1873"]
[Annotator "NA"]
[PlyCount "135"]
[EventDate "2019.05.26"]
[EventType "tourn"]
[EventCountry "GER"]
[SourceTitle "playchess.com"]
[Source "ChessBase"]
[SourceQuality "1"]
[TimeControl "40/5400+30:1800+30"]

1. f4 {[%emt 0:00:00]} d5 {[%emt 0:00:00]} 2. Nf3 {[%emt 0:00:00]} g6 {[%emt 0:00:00]} 3. e3 {[%emt 0:00:00]} Bg7 {[%emt 0:00:28]} 4. c4 {[%emt 0:03:28]} Nf6 {[%emt 0:02:26]} 5. Nc3 {[%emt 0:01:26]} O-O {[%emt 0:01:19]} 6. cxd5 {[%emt 0:03:04] A03: Bird's Opening with 1...d5} (6. d4 Bg4 7. Qb3 Bxf3 8. gxf3 c5 9. Qxb7 Nbd7 10. Nxd5 cxd4 11. e4 Nxd5 12. cxd5 Nc5 13. Qb5 Qc7 14. Qc4 {1-0 (46) Skoberne,J (2553)-Vaibhav,S (2542) chess.com INT 2018}) 6... Nxd5 {[%emt 0:00:27]} 7. Bc4 {[%emt 0:06:44]} c6 {[%emt 0:03:39]} 8. O-O {[%emt 0:01:50]} b6 $146 {[%emt 0:03:51]} ({Predecessor:} 8... Be6 9. Be2 Bg4 10. Qb3 Nb6 11. h3 Be6 {0-1 (30) Levkovich,V (1813)-Kochnev,V (2098) Gorodets 2012}) 9. Ne5 {[%emt 0:09:59]} e6 {[%emt 0:13:27]} 10. d4 {[%emt 0:06:13]} Bb7 {[%emt 0:05:32]} 11. a4 {[%emt 0:08:05]} Nd7 {[%emt 0:01:56]} 12. a5 {[%emt 0:08:09]} Nxc3 {[%emt 0:04:03]} 13. bxc3 {[%emt 0:00:08]} Nxe5 {[%emt 0:03:55]} 14. fxe5 {[%emt 0:00:27]} Qc7 {[%emt 0:00:50]} 15. Qe2 {[%emt 0:34:00]} c5 {[%emt 0:07:06]} 16. Ba3 {[%emt 0:03:19]} Rfd8 {[%emt 0:03:35]} 17. Rf2 {[%emt 0:01:29]} Rac8 {[%emt 0:08:42]} 18. Bd3 {[%emt 0:05:55]} cxd4 {[%emt 0:03:29]} 19. cxd4 {[%emt 0:00:02]} Qc3 {[%emt 0:01:29]} 20. Bb2 {[%emt 0:00:10]} Qb4 {[%emt 0:02:43]} 21. axb6 {[%emt 0:00:45]} Qxb6 {[%emt 0:01:01]} 22. Raf1 {[%emt 0:00:30]} Rd7 {[%emt 0:01:50]} 23. Bb5 {[%emt 0:02:43]} Bc6 {[%emt 0:00:23]} 24. Bxc6 {[%emt 0:00:13]} Rxc6 {[%emt 0:02:52]} 25. Ba3 {[%emt 0:01:18]} Rc3 {[%emt 0:01:32]} 26. Bb2 {[%emt 0:01:13]} Rb3 {[%emt 0:00:32]} 27. Bc1 {[%emt 0:01:15]} a5 {[%emt 0:01:28]} 28. Qa2 {[%emt 0:00:37]} Qb5 {[%emt 0:03:09]} 29. Rb2 {[%emt 0:00:39]} a4 {[%emt 0:02:37]} 30. Rff2 {[%emt 0:00:43]} Rb7 {[%emt 0:01:23]} 31. Rxb3 $1 {[%emt 0:00:28]} Qxb3 {[%emt 0:00:15]} 32. Qxb3 {[%emt 0:00:33]} Rxb3 {[%emt 0:01:18]} 33. Rb2 {[%emt 0:00:01]} Rxb2 {[%emt 0:04:55]} 34. Bxb2 {[%emt 0:00:01]} Bf8 {[%emt 0:00:13]} 35. Kf1 {[%emt 0:00:11] [#]} g5 {[%emt 0:02:58]} (35... f6 $1 $17 {[%mdl 512]} 36. exf6 Kf7) 36. g4 {[%emt 0:01:38]} Kg7 {[%emt 0:01:04]} 37. Ke2 {[%emt 0:00:22]} a3 {[%emt 0:03:29]} 38. Bc3 {[%emt 0:00:31]} f6 {[%emt 0:00:53]} 39. exf6+ {[%emt 0:00:03]} Kxf6 {[%emt 0:00:12]} 40. Kd3 {[%emt 0:01:11]} Bd6 {[%emt 0:03:07]} 41. h3 {[%emt 0:01:16]} Ke7 {[%emt 0:01:22]} 42. Kc4 {[%emt 0:14:59]} Kd7 {[%emt 0:00:25]} 43. e4 {[%emt 0:09:08]} Bf4 {[%emt 0:03:39]} 44. Kb3 {[%emt 0:00:46]} Bd6 {[%emt 0:00:48]} 45. Bd2 {[%emt 0:00:17]} Be7 {[%emt 0:00:27]} 46. Bc1 {[%emt 0:00:15]} Kc6 {[%emt 0:01:03]} 47. Bxa3 {[%emt 0:00:22]} Bf6 {[%emt 0:02:22]} 48. Kc4 {[%emt 0:00:21]} Kd7 {[%emt 0:00:33]} 49. Bf8 {[%emt 0:01:35]} Ke8 {[%emt 0:00:54]} 50. Bd6 {[%emt 0:00:07]} Kd7 {[%emt 0:00:54]} 51. e5 {[%emt 0:01:05]} Bh8 {[%emt 0:02:47]} (51... Bd8 $142 52. Kb5 Ke8) 52. Bf8 {[%emt 0:01:14]} Ke8 {[%emt 0:01:22]} 53. Bh6 {[%emt 0:00:13]} Kf7 {[%emt 0:00:08]} 54. Bxg5 {[%emt 0:00:07]} Bg7 {[%emt 0:00:18]} 55. Bf4 {[%emt 0:02:31]} (55. h4 $142 Bf8 56. d5 exd5+ 57. Kxd5) 55... Ke7 {[%emt 0:01:19]} 56. d5 {[%emt 0:01:19]} exd5+ {[%emt 0:00:08]} 57. Kxd5 {[%emt 0:00:02]} Ke8 {[%emt 0:00:14]} 58. Ke6 {[%emt 0:00:12]} Bf8 {[%emt 0:00:50]} 59. Bg5 {[%emt 0:00:29]} Bb4 {[%emt 0:00:27]} 60. Bf6 {[%emt 0:02:03]} Bc5 {[%emt 0:00:35]} 61. Bg5 $2 {[%emt 0:01:34]} (61. h4 {mates} Kf8 62. g5 Ke8 63. h5 Kf8 64. Kd7 h6 65. gxh6 Kg8 66. Bg5) 61... Bb4 {[%emt 0:00:25]} 62. Bh6 {[%emt 0:00:37]} (62. Kf5 $142 Kd7 63. h4 Bc5 64. e6+ Ke8 65. Bf6 h6 66. g5 hxg5 67. h5) 62... Be7 {[%emt 0:00:47]} 63. g5 {[%emt 0:00:41]} Bb4 {[%emt 0:01:16]} 64. h4 {[%emt 0:00:08]} Be1 {[%emt 0:00:24]} 65. h5 {[%emt 0:00:05]} Bd2 {[%emt 0:00:11]} 66. Kf6 {[%emt 0:00:13]} Bc3 {[%emt 0:00:10]} 67. g6 {[%emt 0:00:53]} hxg6 {[%emt 0:00:05]} 68. hxg6 {[%emt 0:00:05]} 1-0

[Event "GER-chW 2019"]
[Site "Magdeburg"]
[Date "2019.05.29"]
[Round "5.10"]
[White "Ley, Sabrina"]
[Black "Bashylina, Luisa"]
[Result "1/2-1/2"]
[ECO "E83"]
[WhiteElo "1870"]
[BlackElo "1812"]
[Annotator "NA"]
[PlyCount "40"]
[EventDate "2019.05.26"]
[EventType "tourn"]
[EventCountry "GER"]
[SourceTitle "playchess.com"]
[Source "ChessBase"]
[SourceQuality "1"]
[TimeControl "40/5400+30:1800+30"]

1. d4 {[%emt 0:00:00]} Nf6 {[%emt 0:00:00]} 2. c4 {[%emt 0:00:00]} g6 {[%emt 0:00:00]} 3. f3 {[%emt 0:00:00]} Bg7 {[%emt 0:00:03]} 4. e4 {[%emt 0:00:25]} d6 {[%emt 0:00:06]} 5. Nc3 {[%emt 0:00:07]} O-O {[%emt 0:00:05]} 6. Be3 {[%emt 0:00:04]} Nc6 {[%emt 0:00:07]} 7. Qd2 {[%emt 0:02:10]} a6 {[%emt 0:00:28]} 8. O-O-O {[%emt 0:02:53]} Rb8 {[%emt 0:02:35]} 9. g4 {[%emt 0:01:33]} e5 {[%emt 0:01:32]} 10. d5 {[%emt 0:00:22]} Nd4 {[%emt 0:05:55]} 11. h4 {[%emt 0:02:49]} Bd7 {[%emt 0:05:03]} 12. h5 {[%emt 0:06:55]} c5 {[%emt 0:04:28]} 13. Bh6 {[%emt 0:16:26]} Qe7 {[%emt 0:04:41]} 14. Bxg7 {[%emt 0:10:43]} Kxg7 {[%emt 0:00:30]} 15. Qe3 {[%emt 0:15:31]} Ne8 {[%emt 0:10:17]} 16. Nh3 {[%emt 0:06:42]} f6 {[%emt 0:32:39]} 17. hxg6 {[%emt 0:02:39]} hxg6 {[%emt 0:00:11]} 18. Rd2 {[%emt 0:00:58]} Nc7 {[%emt 0:02:40]} 19. Rdh2 {[%emt 0:01:30]} Rh8 {[%emt 0:01:20]} 20. Nf2 {[%emt 0:08:37]} g5 {[%emt 0:02:06]} 1/2-1/2

[Event "GER-chW 2019"]
[Site "Magdeburg"]
[Date "2019.05.30"]
[Round "6.1"]
[White "Mehling, Katharina"]
[Black "Schulze, Lara"]
[Result "0-1"]
[ECO "B68"]
[WhiteElo "1974"]
[BlackElo "2160"]
[Annotator "ChessBase"]
[PlyCount "64"]
[EventDate "2019.05.26"]
[EventType "tourn"]
[EventCountry "GER"]
[SourceTitle "playchess.com"]
[Source "ChessBase"]
[SourceQuality "1"]
[TimeControl "40/5400+30:1800+30"]

1. e4 {[%emt 0:00:00]} c5 {[%emt 0:00:00]} 2. Nf3 {[%emt 0:00:00]} d6 {[%emt 0:00:00]} 3. d4 {[%emt 0:00:00]} cxd4 {[%emt 0:00:00]} 4. Nxd4 {[%emt 0:00:00]} Nf6 {[%emt 0:00:00]} 5. Nc3 {[%emt 0:00:00]} Nc6 {[%emt 0:00:00]} 6. Bg5 {[%emt 0:00:19]} e6 {[%emt 0:00:02]} 7. Qd2 {[%emt 0:00:24]} a6 {[%emt 0:00:07]} 8. O-O-O {[%emt 0:00:46]} Bd7 {[%emt 0:00:10]} 9. f4 {[%emt 0:00:39]} Be7 {[%emt 0:00:32]} 10. Bxf6 {[%emt 0:04:45]} Bxf6 {[%emt 0:01:56]} 11. Nb3 {[%emt 0:02:09]} Be7 {[%emt 0:05:23]} 12. Kb1 {[%emt 0:01:09]} b5 {[%emt 0:00:45]} 13. a3 {[%emt 0:08:32]} b4 {[%emt 0:21:06]} 14. axb4 {[%emt 0:00:52]} Nxb4 {[%emt 0:02:12]} 15. Nd5 {[%emt 0:13:17]} exd5 {[%emt 0:05:27]} 16. Qxb4 {[%emt 0:00:24]} a5 {[%emt 0:01:11]} 17. Qe1 {[%emt 0:02:50]} dxe4 {[%emt 0:04:16]} 18. Qxe4 {[%emt 0:02:34]} O-O {[%emt 0:01:47]} 19. Nd4 {[%emt 0:07:12]} Bf6 {[%emt 0:03:37]} 20. Bb5 {[%emt 0:15:06]} Rb8 {[%emt 0:16:25]} 21. c4 {[%emt 0:09:41]} Bxd4 {[%emt 0:07:27]} 22. Qxd4 {[%emt 0:00:36]} Bxb5 {[%emt 0:00:06]} 23. cxb5 {[%emt 0:00:18]} Rxb5 {[%emt 0:00:26]} 24. Qxd6 {[%emt 0:02:39]} Qa8 {[%emt 0:00:21]} 25. Rhe1 {[%emt 0:06:06]} a4 {[%emt 0:02:10]} 26. Re3 {[%emt 0:02:28]} Rb3 {[%emt 0:02:26]} 27. Rdd3 {[%emt 0:06:31]} Rfb8 {[%emt 0:07:50]} 28. Re2 {[%emt 0:07:30]} h6 {[%emt 0:06:57]} 29. Ka2 {[%emt 0:03:27]} Qb7 {[%emt 0:03:22]} 30. Rdd2 {[%emt 0:02:12]} a3 {[%emt 0:01:03]} 31. bxa3 {[%emt 0:00:30]} Rxa3+ {[%emt 0:00:38]} 32. Qxa3 {[%emt 0:00:09]} Qb1# {[%emt 0:00:04]} 0-1

[Event "GER-chW 2019"]
[Site "Magdeburg"]
[Date "2019.05.30"]
[Round "6.2"]
[White "Michna, Marta"]
[Black "Von Herman, Brigitte"]
[Result "1/2-1/2"]
[ECO "A01"]
[WhiteElo "2355"]
[BlackElo "2064"]
[Annotator "ChessBase"]
[PlyCount "64"]
[EventDate "2019.05.26"]
[EventType "tourn"]
[EventCountry "GER"]
[SourceTitle "playchess.com"]
[Source "ChessBase"]
[SourceQuality "1"]
[TimeControl "40/5400+30:1800+30"]

1. b3 {[%emt 0:00:00]} e5 {[%emt 0:00:00]} 2. Bb2 {[%emt 0:00:00]} d6 {[%emt 0:03:43]} 3. e3 {[%emt 0:00:00]} Nf6 {[%emt 0:03:02]} 4. Ne2 {[%emt 0:01:50]} Be7 {[%emt 0:01:36]} 5. g3 {[%emt 0:00:49]} c6 {[%emt 0:01:23]} 6. d3 {[%emt 0:00:14]} O-O {[%emt 0:02:53]} 7. Nd2 {[%emt 0:00:29]} a5 {[%emt 0:01:37]} 8. a3 {[%emt 0:00:09]} Re8 {[%emt 0:07:25]} 9. Bg2 {[%emt 0:00:16]} Nbd7 {[%emt 0:04:14]} 10. O-O {[%emt 0:01:10]} d5 {[%emt 0:02:59]} 11. h3 {[%emt 0:00:31]} b5 {[%emt 0:06:29]} 12. g4 {[%emt 0:02:45]} h6 {[%emt 0:05:16]} 13. Ng3 {[%emt 0:00:15]} Bc5 {[%emt 0:01:58]} 14. Nf3 {[%emt 0:09:23]} Bb6 {[%emt 0:01:56]} 15. Nf5 {[%emt 0:01:50]} Bc7 {[%emt 0:01:12]} 16. N3h4 {[%emt 0:21:53]} Nf8 {[%emt 0:01:52]} 17. f4 {[%emt 0:01:41]} Ng6 {[%emt 0:03:58]} 18. fxe5 {[%emt 0:08:19]} Nxh4 {[%emt 0:05:30]} 19. exf6 {[%emt 0:00:14]} Bxf5 {[%emt 0:15:26]} 20. gxf5 {[%emt 0:00:03]} Qd6 21. Rf4 Rxe3 {[%emt 0:08:13]} 22. Rxh4 {[%emt 0:12:02]} Rae8 {[%emt 0:03:27]} 23. Rg4 {[%emt 0:08:43]} Re2 {[%emt 0:06:07]} 24. Kf1 {[%emt 0:00:48]} Bb6 {[%emt 0:06:22]} 25. Qxe2 Rxe2 {[%emt 0:00:09]} 26. Kxe2 {[%emt 0:00:19]} Qc5 {[%emt 0:00:48]} 27. Rxg7+ {[%emt 0:11:35]} Kf8 {[%emt 0:00:11]} 28. Kd1 {[%emt 0:15:44]} Qg1+ {[%emt 0:00:25]} 29. Ke2 {[%emt 0:00:02]} Qe3+ {[%emt 0:00:15]} 30. Kd1 {[%emt 0:00:02]} Qg1+ {[%emt 0:00:12]} 31. Ke2 {[%emt 0:00:07]} Qe3+ {[%emt 0:00:07]} 32. Kd1 {[%emt 0:00:02]} Qg1+ 1/2-1/2

[Event "GER-chW 2019"]
[Site "Magdeburg"]
[Date "2019.05.30"]
[Round "6.3"]
[White "Kunze, Kerstin"]
[Black "Liu, Sijia Anna"]
[Result "1-0"]
[ECO "A01"]
[WhiteElo "2066"]
[BlackElo "1689"]
[Annotator "NA"]
[PlyCount "97"]
[EventDate "2019.05.26"]
[EventType "tourn"]
[EventCountry "GER"]
[SourceTitle "playchess.com"]
[Source "ChessBase"]
[SourceQuality "1"]
[TimeControl "40/5400+30:1800+30"]

1. b3 {[%emt 0:00:00]} Nf6 {[%emt 0:01:29]} 2. Bb2 {[%emt 0:00:00]} c5 {[%emt 0:02:09]} 3. e3 {[%emt 0:00:45]} Nc6 {[%emt 0:01:39]} 4. f4 {[%emt 0:00:33]} d5 {[%emt 0:03:30]} 5. Nf3 {[%emt 0:04:49]} g6 {[%emt 0:08:08]} 6. Bb5 {[%emt 0:05:51] A03: Bird's Opening with 1...d5} Bd7 {[%emt 0:05:02]} 7. Bxc6 {[%emt 0:18:02]} (7. Nc3 a6 8. Bxc6 Bxc6 9. Ne5 Rc8 10. O-O Bg7 11. Ne2 O-O 12. Ng3 Nd7 13. Qg4 f5 {0-1 (36) Lagarde,M (2604)-Skoberne,J (2582) chess.com INT 2019}) 7... Bxc6 {[%emt 0:00:49]} 8. Ne5 {[%emt 0:00:08]} Bg7 {[%emt 0:04:04]} 9. O-O {[%emt 0:06:04]} O-O {[%emt 0:05:05]} 10. Nxc6 {[%emt 0:23:10]} bxc6 {[%emt 0:00:29]} 11. d3 {[%emt 0:15:04]} Qb6 {[%emt 0:20:20]} 12. Qe2 $146 {[%emt 0:08:12]} ({Predecessor:} 12. c4 Rfd8 {1-0 (54) Waldmann,C-Kunze,N Kiel 2001}) 12... a5 {[%emt 0:05:20]} 13. Be5 {[%emt 0:00:57]} Rfe8 {[%emt 0:03:56]} 14. Nc3 {[%emt 0:01:24]} Bh6 15. Na4 Qa7 {[%emt 0:01:03]} 16. g4 {[%emt 0:01:54]} Nd7 {[%emt 0:01:37]} 17. Bb2 f6 {[%emt 0:10:10]} 18. e4 {[%emt 0:06:34]} c4+ {[%emt 0:12:53]} 19. Kh1 {[%emt 0:00:42]} cxb3 {[%emt 0:01:51]} 20. axb3 {[%emt 0:00:29]} d4 {[%emt 0:00:52]} 21. Qf2 {[%emt 0:01:07]} e5 {[%emt 0:02:18]} 22. fxe5 {[%emt 0:02:15]} fxe5 {[%emt 0:00:24]} 23. Qf7+ {[%emt 0:00:27]} Kh8 {[%emt 0:00:05]} 24. Ba3 {[%emt 0:00:51]} Bg7 {[%emt 0:03:39]} 25. Rf3 {[%emt 0:01:12]} Nf8 {[%emt 0:00:46]} 26. Qxa7 {[%emt 0:00:31]} Rxa7 {[%emt 0:00:06]} 27. Nc5 {[%emt 0:00:04]} Ne6 {[%emt 0:04:24]} 28. Nxe6 {[%emt 0:00:25]} Rxe6 {[%emt 0:00:07]} 29. Bb4 {[%emt 0:01:27]} c5 {[%emt 0:01:41]} 30. Bxc5 {[%emt 0:01:36]} Raa6 {[%emt 0:00:52]} 31. b4 {[%emt 0:00:14]} axb4 {[%emt 0:00:51]} 32. Rxa6 {[%emt 0:00:04]} Rxa6 {[%emt 0:00:06]} 33. Bxb4 {[%emt 0:00:04]} Rc6 {[%emt 0:01:40]} 34. Rf2 {[%emt 0:00:36]} Bh6 {[%emt 0:00:55]} 35. Kg2 {[%emt 0:00:21]} Bf4 {[%emt 0:01:18]} 36. h3 {[%emt 0:02:36]} Kg7 {[%emt 0:02:11]} 37. Re2 {[%emt 0:00:33]} Kf6 {[%emt 0:01:49]} 38. Kf3 {[%emt 0:00:09]} g5 {[%emt 0:01:02]} 39. Bd2 {[%emt 0:00:09]} Rxc2 $2 {[%emt 0:01:50]} (39... Ra6 $11) 40. Bxf4 {[%emt 0:00:06] Discovered Attack} Rxe2 {[%emt 0:00:06]} 41. Bxe5+ {[%emt 0:30:47]} Kxe5 {[%emt 0:30:15]} 42. Kxe2 {[%emt 0:00:05]} Kf4 {[%emt 0:01:11]} 43. Kd2 {[%emt 0:01:41]} Ke5 {[%emt 0:02:51]} 44. Kc2 {[%emt 0:00:00]} Kd6 {[%emt 0:00:00]} 45. Kb3 {[%emt 0:00:00]} Kc5 {[%emt 0:00:00]} 46. Ka4 {[%emt 0:00:00]} Kc6 {[%emt 0:00:00]} 47. Kb4 {[%emt 0:00:00]} Kd6 {[%emt 0:00:00]} 48. Kc4 {[%emt 0:00:00]} Ke5 {[%emt 0:00:00]} 49. Kc5 {[%emt 0:00:00] Kd5+} 1-0

[Event "GER-chW 2019"]
[Site "Magdeburg"]
[Date "2019.05.30"]
[Round "6.4"]
[White "Schmidt, Jade"]
[Black "Koehler, Inken"]
[Result "0-1"]
[ECO "D30"]
[WhiteElo "2062"]
[BlackElo "1979"]
[Annotator "NA"]
[PlyCount "88"]
[EventDate "2019.05.26"]
[EventType "tourn"]
[EventCountry "GER"]
[SourceTitle "playchess.com"]
[Source "ChessBase"]
[SourceQuality "1"]
[TimeControl "40/5400+30:1800+30"]

1. d4 {[%emt 0:00:00]} d5 {[%emt 0:00:00]} 2. c4 {[%emt 0:00:00]} e6 {[%emt 0:00:00]} 3. cxd5 {[%emt 0:02:29]} exd5 {[%emt 0:00:00]} 4. Nc3 {[%emt 0:00:09]} c6 {[%emt 0:00:13]} 5. Bf4 {[%emt 0:06:57]} Bd6 {[%emt 0:00:33]} 6. Bg3 {[%emt 0:00:58]} Ne7 {[%emt 0:01:14]} 7. e3 {[%emt 0:02:05] D31: Queen's Gambit Declined: Semi-Slav without ...Nf6 (+ Marshall Gambit and Noteboom) and Exchange Variation lines without ...Nf6} Bf5 {[%emt 0:01:02]} (7... Nf5 8. Bxd6 Nxd6 9. Bd3 Bf5 10. Bxf5 Nxf5 11. Qg4 g6 12. e4 dxe4 13. Qxe4+ Ne7 14. h4 O-O {½-½ (43) Andreikin,D (2736)-Harikrishna,P (2766) Wijk aan Zee 2017}) 8. Nf3 {[%emt 0:08:59]} O-O {[%emt 0:03:45]} 9. Nh4 {[%emt 0:23:34]} Be4 {[%emt 0:13:07]} 10. f3 $146 {[%emt 0:03:42]} ({Predecessor:} 10. Be2 Bxg3 11. hxg3 Nd7 12. f3 Bg6 13. Qb3 Qc7 14. O-O-O Rfe8 {½-½ (67) Pascoal,J (2130)-Pawlowski,W (2133) ICCF email 2011}) 10... Nf5 {[%emt 0:11:43]} (10... Bf5 $1 $11 {remains equal.}) 11. Bf2 {[%emt 0:15:48]} (11. fxe4 $16 Nxh4 12. exd5) 11... Nxh4 {[%emt 0:02:43]} 12. fxe4 {[%emt 0:00:05]} dxe4 {[%emt 0:07:59]} 13. Qg4 {[%emt 0:00:14]} Ng6 {[%emt 0:00:12]} 14. Qxe4 {[%emt 0:00:06]} Nd7 {[%emt 0:01:21]} 15. Bd3 {[%emt 0:01:44]} Nf6 {[%emt 0:01:59]} 16. Qf3 {[%emt 0:01:34]} Bb4 {[%emt 0:02:31]} 17. O-O {[%emt 0:02:27]} Qe7 {[%emt 0:05:30]} 18. e4 {[%emt 0:06:27]} Rad8 {[%emt 0:03:54]} 19. a3 {[%emt 0:01:25]} Ba5 {[%emt 0:01:33]} 20. b4 {[%emt 0:02:10]} ({Better is} 20. Rad1 $16) 20... Bb6 {[%emt 0:01:44]} 21. e5 {[%emt 0:03:21]} Nd5 {[%emt 0:18:43]} 22. Nxd5 {[%emt 0:00:30]} Rxd5 {[%emt 0:00:09]} 23. Bc4 {[%emt 0:02:26]} Rxd4 {[%emt 0:01:42]} 24. Qc3 {[%emt 0:04:18]} Re4 {[%emt 0:03:33]} 25. Bxb6 {[%emt 0:03:21]} axb6 {[%emt 0:00:02]} 26. e6 {[%emt 0:00:27]} fxe6 {[%emt 0:01:28]} 27. Rxf8+ {[%emt 0:02:05]} Qxf8 {[%emt 0:00:40]} 28. Qd3 {[%emt 0:01:44]} Qf4 {[%emt 0:08:31]} 29. Qd8+ {[%emt 0:01:33]} Qf8 {[%emt 0:03:21]} 30. Qd3 {[%emt 0:00:08]} Re5 {[%emt 0:00:07]} 31. Rf1 {[%emt 0:00:57]} Qe7 {[%emt 0:00:37]} 32. Qb3 {[%emt 0:02:41]} b5 {[%emt 0:01:02]} 33. Bd3 {[%emt 0:00:05]} Re3 {[%emt 0:01:59]} 34. Qc2 {[%emt 0:00:48]} Qe8 {[%emt 0:01:42]} 35. Bxg6 {[%emt 0:00:32]} hxg6 {[%emt 0:00:26]} 36. Qc1 {[%emt 0:01:30]} Re5 {[%emt 0:00:26]} 37. Qc3 {[%emt 0:00:28]} Rf5 {[%emt 0:00:31]} 38. Rd1 {[%emt 0:00:27]} Qe7 $19 {[%emt 0:01:01]} 39. Qg3 {[%emt 0:00:38]} Kf7 {[%emt 0:01:18]} 40. Qb8 {[%emt 0:00:23]} g5 {[%emt 0:00:55]} 41. Qh8 {[%emt 0:15:03]} Qe8 {[%emt 0:05:38]} 42. Qh3 {[%emt 0:01:13]} Qb8 {[%emt 0:07:06]} 43. Qh5+ {[%emt 0:06:05]} Kf6 {[%emt 0:01:56]} 44. Rd7 {[%emt 0:03:19]} Qa7+ {[%emt 0:00:23]} 0-1